fUSD/lending_fUSD_20250111
["ID","MTS","AMOUNT","RATE_DAILY","PERIOD"]
[348528289,1736604669664,-150.0,0.00011479,2]
[348528290,1736604669674,-300.0,0.00011479,2]
[348528291,1736604669683,-151.76,0.00011479,2]
[348528292,1736604669693,-152.13,0.00011479,2]
[348528293,1736604669703,-979.94,0.00011479,2]
[348528294,1736604669712,-150.0,0.00011479,2]
[348528295,1736604669722,-979.94,0.00011479,2]
[348528296,1736604669732,-150.0,0.00011479,2]
[348528297,1736604669741,-224.313,0.0001149,2]
[348528298,1736604669750,-2751.0,0.00011507,2]
[348528299,1736604669761,-500.0,0.00011532,2]
[348528300,1736604669770,-859.12,0.00011532,2]
[348528301,1736604669779,-500.0,0.00011532,2]
[348528302,1736604669788,-947.85,0.00011532,2]
[348528303,1736604669797,-3638.85,0.00011532,2]
[348528304,1736604669807,-500.0,0.00011532,2]
[348528305,1736604669816,-799.27,0.00011532,2]
[348528306,1736604669825,-1201.74,0.00011532,2]
[348528307,1736604669834,-959.15,0.00011532,2]
[348528308,1736604669843,-677.89,0.00011532,2]
[348528309,1736604669853,-1470.61,0.00011532,2]
[348528310,1736604669864,-500.0,0.00011532,2]
[348528311,1736604669874,-2742.65,0.00011532,2]
[348528312,1736604669883,-1246.82,0.00011532,2]
[348528313,1736604669892,-500.0,0.00011532,2]
[348528314,1736604669901,-1725.71,0.00011532,2]
[348528315,1736604669911,-552.08,0.00011532,2]
[348528316,1736604669920,-1451.81,0.00011532,2]
[348528317,1736604669929,-500.0,0.00011532,2]
[348528318,1736604669938,-1104.76,0.00011532,2]
[348528319,1736604669948,-1160.96,0.00011532,2]
[348528320,1736604669957,-500.0,0.00011532,2]
[348528321,1736604669966,-500.0,0.00011532,2]
[348528322,1736604669976,-924.88,0.00011532,2]
[348528323,1736604669985,-845.84,0.00011532,2]
[348528324,1736604669994,-500.0,0.00011532,2]
[348528325,1736604670003,-1425.89,0.00011532,2]
[348528326,1736604670013,-727.59,0.00011532,2]
[348528327,1736604670022,-905.01,0.00011532,2]
[348528328,1736604670031,-679.2,0.00011532,2]
[348528329,1736604670040,-655.46,0.00011532,2]
[348528330,1736604670050,-722.85,0.00011532,2]
[348528331,1736604670059,-500.0,0.00011532,2]
[348528332,1736604670068,-741.73,0.00011532,2]
[348528333,1736604670077,-500.0,0.00011533,2]
[348528334,1736604670086,-500.0,0.00011533,2]
[348528335,1736604670095,-407.07488931,0.00011533,2]
[348528336,1736604670104,-580.7,0.00011533,2]
[348528337,1736604670113,-249.71977214,0.00011533,2]
[348528338,1736604670122,-511.1,0.00011533,2]
[348528339,1736604670131,-358.60144298,0.00011533,2]
[348528340,1736604670140,-500.0,0.00011533,2]
[348528341,1736604670149,-500.0,0.00011533,2]
[348528342,1736604670159,-302.39378853,0.00011533,2]
[348528343,1736604670168,-500.0,0.00011533,2]
[348528344,1736604670177,-602.55,0.00011533,2]
[348528345,1736604670187,-500.0,0.00011533,2]
[348528346,1736604670196,-548.94,0.00011533,2]
[348528347,1736604670205,-304.9934385,0.00011533,2]
[348528348,1736604670214,-500.0,0.00011533,2]
[348528349,1736604670223,-667.71,0.00011533,2]
[348528350,1736604670232,-500.0,0.00011533,2]
[348528351,1736604670241,-618.88,0.00011533,2]
[348528352,1736604670250,-713.91,0.00011533,2]
[348528353,1736604670259,-500.0,0.00011533,2]
[348528354,1736604670269,-531.29,0.00011533,2]
[348528355,1736604670281,-607.0,0.00011533,2]
[348528356,1736604670290,-500.0,0.00011533,2]
[348528357,1736604670300,-500.0,0.00011533,2]
[348528358,1736604670308,-597.13,0.00011533,2]
[348528359,1736604670319,-759.87,0.00011533,2]
[348528360,1736604670334,-500.0,0.00011533,2]
[348528361,1736604670346,-500.0,0.00011533,2]
[348528362,1736604670356,-500.0,0.00011533,2]
[348528363,1736604670364,-500.0,0.00011533,2]
[348528364,1736604670374,-500.0,0.00011533,2]
[348528365,1736604670382,-521.53,0.00011533,2]
[348528366,1736604670391,-538.94,0.00011533,2]
[348528367,1736604670400,-500.0,0.00011533,2]
[348528368,1736604670409,-500.0,0.00011533,2]
[348528369,1736604670419,-500.0,0.00011533,2]
[348528370,1736604670427,-500.0,0.00011533,2]
[348528371,1736604670436,-581.87,0.00011533,2]
[348528372,1736604670446,-500.0,0.00011533,2]
[348528373,1736604670454,-500.0,0.00011533,2]
[348528374,1736604670463,-500.0,0.00011533,2]
[348528375,1736604670472,-551.33,0.00011533,2]
[348528376,1736604670481,-500.0,0.00011533,2]
[348528377,1736604670490,-600.96,0.00011533,2]
[348528378,1736604670499,-525.61,0.00011533,2]
[348528379,1736604670508,-576.85,0.00011533,2]
[348528380,1736604670518,-500.0,0.00011533,2]
[348528381,1736604670527,-500.0,0.00011533,2]
[348528382,1736604670536,-500.0,0.00011533,2]
[348528383,1736604670546,-586.28721159,0.00011533,2]
[348528384,1736604670556,-500.0,0.00011533,2]
[348528385,1736604670566,-500.0,0.00011533,2]
[348528386,1736604670575,-500.0,0.00011533,2]
[348528387,1736604670585,-500.0,0.00011533,2]
[348528388,1736604670596,-500.0,0.00011533,2]
[348528389,1736604670605,-986.11,0.00011533,2]
[348528390,1736604670614,-500.0,0.00011533,2]
[348528391,1736604670624,-523.99,0.00011533,2]
[348528392,1736604670633,-500.0,0.00011533,2]
[348528393,1736604670643,-500.0,0.00011533,2]
[348528394,1736604670653,-500.0,0.00011533,2]
[348528395,1736604670662,-2707.87,0.00011533,2]
[348528396,1736604670671,-369.31558608,0.00011533,2]
[348528397,1736604670681,-500.0,0.00011533,2]
[348528398,1736604670690,-417.07,0.00011533,2]
[348528399,1736604670700,-500.0,0.00011533,2]
[348528400,1736604670710,-278.44,0.00011533,2]
[348528401,1736604670719,-639.0,0.00011533,2]
[348528402,1736604670728,-500.0,0.00011533,2]
[348528403,1736604670737,-500.0,0.00011533,2]
[348528404,1736604670747,-1835.26,0.00011533,2]
[348528405,1736604670758,-500.0,0.00011533,2]
[348528406,1736604670767,-500.0,0.00011533,2]
[348528407,1736604670776,-500.0,0.00011533,2]
[348528408,1736604670785,-500.0,0.00011533,2]
[348528409,1736604670795,-2881.45,0.00011533,2]
[348528410,1736604670804,-963.54,0.00011533,2]
[348528411,1736604670815,-581.18,0.00011533,2]
[348528412,1736604670824,-539.34,0.00011533,2]
[348528413,1736604670833,-226.76,0.00011533,2]
[348528414,1736604670842,-500.0,0.00011533,2]
[348528415,1736604670851,-163656.57242279,0.00011535,4]
[348528416,1736604671113,-683.90000001,0.00011535,4]
[348528417,1736604671567,-1148.38,9.888e-05,2]
[348528418,1736604671576,-500.0,9.888e-05,2]
[348528419,1736604671586,-500.0,9.889e-05,2]
[348528420,1736604671595,-1148.38,0.00010162,2]
[348528421,1736604671604,-1148.38,0.00010436,2]
[348528422,1736604671613,-719.0600005,0.0001071,2]
[348528423,1736604671631,-429.3199995,0.0001071,2]
[348528424,1736604671640,-1148.38,0.00010984,2]
[348528425,1736604671649,-1148.38,0.00011258,2]
[348528426,1736604671658,-979.94,0.00011479,2]
[348528427,1736604671667,-1148.38,0.00011532,2]
[348528428,1736604671676,-13918.79999965,0.00011535,4]
[348528429,1736604671688,-3253.2053238,0.00011535,4]
[348528430,1736604671699,-1120.07727721,0.00011535,4]
[348528431,1736604671711,-565.12456011,0.00011535,4]
[348528432,1736604671722,-539.2883703,0.00011535,4]
[348528433,1736604671733,-428.27040096,0.00011535,4]
[348528434,1736604671744,-85306.0943926,0.00011535,4]
[348528435,1736604671755,-218698.89412947,0.00011535,4]
[348528436,1736604671772,-3921.81580609,0.00011535,4]
[348528442,1736605280933,524.86,8.219e-05,2]
[348529341,1736605724819,686.70448551,8e-05,2]
[348529342,1736605724843,10000.0,8e-05,2]
[348529343,1736605724865,10000.0,8e-05,2]
[348529344,1736605724890,10000.0,8e-05,2]
[348529345,1736605724913,10000.0,8e-05,2]
[348529346,1736605724935,10000.0,8e-05,2]
[348529347,1736605724956,10000.0,8e-05,2]
[348529348,1736605724978,10000.0,8e-05,2]
[348529349,1736605725000,9199.06081458,8e-05,2]
[348529371,1736605831805,-250.0,8.834e-05,2]
[348529372,1736605831815,-124.2,8.9e-05,2]
[348529377,1736605831968,-125.8,8.9e-05,2]
[348529378,1736605831978,-267.24398086,8.967e-05,2]
[348529386,1736605837763,-146.53601914,8.967e-05,2]
[348529387,1736605837773,-594.87286306,8.982e-05,2]
[348529388,1736605837782,-464.66,8.982e-05,2]
[348529389,1736605837791,-268.69482046,9e-05,2]
[348529390,1736605837801,-1000.0,9.02e-05,2]
[348529391,1736605837810,-250.0,9.132e-05,2]
[348529392,1736605837820,-300.0,9.155e-05,2]
[348529393,1736605837829,-2919.88687131,9.156e-05,2]
[348529394,1736605837903,-4764.43312869,9.156e-05,2]
[348529395,1736605837912,-402.85,9.168e-05,2]
[348529396,1736605837922,-168.71,9.218e-05,2]
[348529397,1736605837932,-1704.24,9.224e-05,2]
[348529398,1736605837941,-994.28,9.29e-05,2]
[348529399,1736605837951,-200.0,9.379e-05,2]
[348529400,1736605837962,-716.27,9.611e-05,2]
[348529401,1736605837971,-859.02,9.659e-05,2]
[348529402,1736605837980,-857.09,9.789e-05,2]
[348529403,1736605837991,-150.0,9.886e-05,2]
[348529404,1736605838000,-116.29811845,9.887e-05,2]
[348529405,1736605838012,-697.41188155,9.887e-05,2]
[348529406,1736605838021,-500.0,9.887e-05,2]
[348529407,1736605838031,-1026.91,9.887e-05,2]
[348529408,1736605838042,-587.47055425,9.887e-05,2]
[348529409,1736605838055,-645.52944575,9.887e-05,2]
[348529410,1736605838065,-900.26,9.887e-05,2]
[348529411,1736605838074,-500.0,9.887e-05,2]
[348529412,1736605838084,-679.47,9.887e-05,2]
[348529413,1736605838093,-999.9405545,9.887e-05,2]
[348529414,1736605838111,-149.9694455,9.887e-05,2]
[348529415,1736605838120,-500.0,9.887e-05,2]
[348529416,1736605838130,-512.43,9.887e-05,2]
[348529417,1736605838139,-500.0,9.887e-05,2]
[348529418,1736605838148,-500.0,9.887e-05,2]
[348529419,1736605838157,-500.0,9.887e-05,2]
[348529421,1736605838166,-500.0,9.887e-05,2]
[348529423,1736605838175,-500.0,9.887e-05,2]
[348529425,1736605838184,-500.0,9.887e-05,2]
[348529427,1736605838193,-500.0,9.887e-05,2]
[348529429,1736605838202,-502.08275398,9.887e-05,2]
[348529431,1736605838211,-500.0,9.887e-05,2]
[348529433,1736605838220,-577.13,9.887e-05,2]
[348529435,1736605838229,-500.0,9.887e-05,2]
[348529437,1736605838239,-500.0,9.887e-05,2]
[348529439,1736605838248,-500.0,9.888e-05,2]
[348529441,1736605838257,-534.58,9.888e-05,2]
[348529443,1736605838266,-500.0,9.888e-05,2]
[348529445,1736605838275,-500.0,9.888e-05,2]
[348529447,1736605838284,-157.118635,9.888e-05,2]
[348529450,1736605838294,-500.0,9.888e-05,2]
[348529452,1736605838303,-500.0,9.888e-05,2]
[348529454,1736605838312,-500.0,9.888e-05,2]
[348529457,1736605838321,-500.0,9.888e-05,2]
[348529459,1736605838330,-500.0,9.888e-05,2]
[348529461,1736605838339,-500.0,9.888e-05,2]
[348529463,1736605838349,-500.0,9.888e-05,2]
[348529465,1736605838357,-500.0,9.888e-05,2]
[348529467,1736605838367,-500.0,9.888e-05,2]
[348529469,1736605838376,-500.0,9.888e-05,2]
[348529471,1736605838385,-500.0,9.888e-05,2]
[348529473,1736605838395,-500.0,9.888e-05,2]
[348529475,1736605838404,-500.0,9.888e-05,2]
[348529477,1736605838413,-500.0,9.888e-05,2]
[348529479,1736605838422,-500.0,9.888e-05,2]
[348529481,1736605838431,-304.082893,9.888e-05,2]
[348529483,1736605838440,-500.0,9.888e-05,2]
[348529485,1736605838449,-556.27,9.888e-05,2]
[348529487,1736605838458,-500.0,9.888e-05,2]
[348529489,1736605838467,-500.0,9.888e-05,2]
[348529491,1736605838476,-500.0,9.888e-05,2]
[348529493,1736605838485,-500.0,9.888e-05,2]
[348529495,1736605838494,-500.0,9.888e-05,2]
[348529497,1736605838503,-500.0,9.888e-05,2]
[348529499,1736605838512,-500.0,9.888e-05,2]
[348529501,1736605838521,-500.0,9.888e-05,2]
[348529503,1736605838530,-500.0,9.888e-05,2]
[348529505,1736605838539,-500.0,9.888e-05,2]
[348529507,1736605838548,-500.0,9.888e-05,2]
[348529509,1736605838557,-246.98041423,9.888e-05,2]
[348529511,1736605838570,-253.01958577,9.888e-05,2]
[348529513,1736605838580,-500.0,9.888e-05,2]
[348529515,1736605838588,-500.0,9.888e-05,2]
[348529517,1736605838598,-500.0,9.888e-05,2]
[348529519,1736605838607,-500.0,9.888e-05,2]
[348529521,1736605838616,-500.0,9.888e-05,2]
[348529523,1736605838625,-500.0,9.888e-05,2]
[348529525,1736605838634,-500.0,9.888e-05,2]
[348529527,1736605838643,-500.0,9.888e-05,2]
[348529529,1736605838652,-500.0,9.888e-05,2]
[348529530,1736605838661,-500.0,9.888e-05,2]
[348529531,1736605838670,-500.0,9.888e-05,2]
[348529532,1736605838679,-500.0,9.888e-05,2]
[348529533,1736605838688,-500.0,9.888e-05,2]
[348529534,1736605838698,-500.0,9.888e-05,2]
[348529535,1736605838709,-500.0,9.888e-05,2]
[348529536,1736605838718,-500.0,9.888e-05,2]
[348529537,1736605838728,-500.0,9.888e-05,2]
[348529538,1736605838736,-500.0,9.888e-05,2]
[348529539,1736605838746,-500.0,9.888e-05,2]
[348529540,1736605838755,-500.0,9.888e-05,2]
[348529541,1736605838764,-291.47321377,9.888e-05,2]
[348529543,1736605838776,-208.52678623,9.888e-05,2]
[348529544,1736605838784,-500.0,9.888e-05,2]
[348529546,1736605838794,-500.0,9.888e-05,2]
[348529548,1736605838802,-500.0,9.888e-05,2]
[348529550,1736605838811,-500.0,9.888e-05,2]
[348529552,1736605838820,-500.0,9.888e-05,2]
[348529554,1736605838830,-500.0,9.888e-05,2]
[348529556,1736605838840,-500.0,9.888e-05,2]
[348529558,1736605838851,-500.0,9.888e-05,2]
[348529560,1736605838860,-500.0,9.888e-05,2]
[348529562,1736605838870,-500.0,9.888e-05,2]
[348529564,1736605838879,-500.0,9.888e-05,2]
[348529566,1736605838889,-500.0,9.888e-05,2]
[348529568,1736605838897,-500.0,9.888e-05,2]
[348529570,1736605838906,-500.0,9.888e-05,2]
[348529572,1736605838915,-500.0,9.888e-05,2]
[348529574,1736605838924,-500.0,9.888e-05,2]
[348529576,1736605838933,-500.0,9.888e-05,2]
[348529578,1736605838942,-500.0,9.888e-05,2]
[348529580,1736605838953,-500.0,9.888e-05,2]
[348529582,1736605838963,-500.0,9.888e-05,2]
[348529584,1736605838972,-17365.28930422,9.888e-05,2]
[348529586,1736605838983,-446.79742223,9.888e-05,2]
[348529588,1736605838995,-923.40858584,9.888e-05,2]
[348529590,1736605839005,-3906.47492057,9.888e-05,2]
[348529593,1736605839016,-2170.4612471,9.888e-05,2]
[348529595,1736605839026,-6268.52364644,9.888e-05,2]
[348529599,1736605839056,-410.5599952,9.888e-05,2]
[348529602,1736605839080,-3084.60365588,9.888e-05,2]
[348529605,1736605839091,-969.9861,9.888e-05,2]
[348529656,1736605839809,-16174.69900025,9.888e-05,2]
[348529658,1736605839985,-87269.69267249,9.888e-05,2]
[348529659,1736605839998,-1168.0,9.888e-05,2]
[348529660,1736605840009,-1106.136,9.888e-05,2]
[348529661,1736605840021,-922.09,9.888e-05,2]
[348529662,1736605840661,-706.77902618,9.888e-05,2]
[348529663,1736605840693,-667.3867318,9.888e-05,2]
[348529664,1736605840706,-1781.7977269,9.888e-05,2]
[348529665,1736605840718,-449.51804658,9.888e-05,2]
[348529851,1736605842878,-500.0,9.887e-05,2]
[348529853,1736605842887,-500.0,9.887e-05,2]
[348529855,1736605842896,-52.7865413,9.887e-05,2]
[348529857,1736605842908,-447.2134587,9.887e-05,2]
[348529859,1736605842917,-478.57108855,9.887e-05,2]
[348529866,1736605842969,-21.42891145,9.887e-05,2]
[348529868,1736605842978,-186973.02159083,9.888e-05,2]
[348529870,1736605842987,-1003.07,9.888e-05,2]
[348529872,1736605842996,-783.1,9.888e-05,2]
[348529874,1736605843005,-1699.42,9.888e-05,2]
[348529876,1736605843014,-827.11,9.888e-05,2]
[348529878,1736605843023,-921.6,9.888e-05,2]
[348529880,1736605843032,-849.75,9.888e-05,2]
[348529882,1736605843042,-500.0,9.888e-05,2]
[348529884,1736605843051,-500.0,9.888e-05,2]
[348529886,1736605843060,-500.0,9.888e-05,2]
[348529888,1736605843069,-716.41,9.888e-05,2]
[348529890,1736605843078,-1834.98,9.888e-05,2]
[348529891,1736605843087,-500.0,9.889e-05,2]
[348529893,1736605843096,-500.0,9.889e-05,2]
[348529895,1736605843106,-500.0,9.889e-05,2]
[348529897,1736605843115,-500.0,9.889e-05,2]
[348529899,1736605843125,-500.0,9.889e-05,2]
[348529901,1736605843134,-500.0,9.889e-05,2]
[348529904,1736605843144,-500.0,9.889e-05,2]
[348529906,1736605843153,-500.0,9.889e-05,2]
[348529907,1736605843162,-500.0,9.889e-05,2]
[348529909,1736605843171,-500.81682399,9.889e-05,2]
[348529911,1736605843180,-501.4789636,9.889e-05,2]
[348529913,1736605843190,-300.57184681,9.889e-05,2]
[348529915,1736605843199,-500.0,9.889e-05,2]
[348529917,1736605843208,-500.0,9.889e-05,2]
[348529919,1736605843217,-500.0,9.889e-05,2]
[348529921,1736605843228,-500.0,9.889e-05,2]
[348529923,1736605843237,-599.39991311,9.889e-05,2]
[348529925,1736605843246,-553.19473759,9.889e-05,2]
[348529927,1736605843255,-500.0,9.889e-05,2]
[348529929,1736605843265,-501.35544198,9.889e-05,2]
[348529931,1736605843274,-500.0,9.889e-05,2]
[348529933,1736605843282,-500.0,9.889e-05,2]
[348529935,1736605843291,-500.0,9.889e-05,2]
[348529937,1736605843300,-500.0,9.889e-05,2]
[348529939,1736605843309,-500.0,9.889e-05,2]
[348529941,1736605843318,-500.0,9.889e-05,2]
[348529943,1736605843327,-500.0,9.889e-05,2]
[348529945,1736605843336,-500.0,9.889e-05,2]
[348529947,1736605843345,-500.0,9.889e-05,2]
[348529949,1736605843354,-500.0,9.889e-05,2]
[348529952,1736605843363,-500.0,9.889e-05,2]
[348529955,1736605843372,-500.0,9.889e-05,2]
[348529957,1736605843381,-500.0,9.889e-05,2]
[348529959,1736605843390,-500.0,9.889e-05,2]
[348529961,1736605843399,-187.37459291,9.889e-05,2]
[348529963,1736605843408,-500.0,9.889e-05,2]
[348529965,1736605843417,-500.0,9.889e-05,2]
[348529967,1736605843425,-500.0,9.889e-05,2]
[348529969,1736605843434,-500.0,9.889e-05,2]
[348529971,1736605843443,-500.0,9.889e-05,2]
[348529973,1736605843452,-500.0,9.889e-05,2]
[348529975,1736605843461,-500.0,9.889e-05,2]
[348529977,1736605843470,-500.0,9.889e-05,2]
[348529979,1736605843479,-500.0,9.889e-05,2]
[348529981,1736605843488,-500.0,9.889e-05,2]
[348529983,1736605843497,-500.0,9.889e-05,2]
[348529985,1736605843506,-500.0,9.889e-05,2]
[348529987,1736605843515,-500.0,9.889e-05,2]
[348529989,1736605843525,-500.0,9.889e-05,2]
[348529991,1736605843535,-500.0,9.889e-05,2]
[348529993,1736605843544,-500.0,9.889e-05,2]
[348529995,1736605843553,-500.0,9.889e-05,2]
[348529997,1736605843562,-500.0,9.889e-05,2]
[348529999,1736605843571,-500.0,9.889e-05,2]
[348530001,1736605843580,-500.0,9.889e-05,2]
[348530003,1736605843590,-500.0,9.889e-05,2]
[348530005,1736605843600,-500.0,9.889e-05,2]
[348530007,1736605843609,-687.13,9.894e-05,2]
[348530009,1736605843618,-687.13,9.894e-05,2]
[348530011,1736605843627,-500.0,9.894e-05,2]
[348530013,1736605843635,-500.0,9.894e-05,2]
[348530015,1736605843645,-589.94,9.894e-05,2]
[348530017,1736605843654,-500.0,9.894e-05,2]
[348530019,1736605843663,-786.53,9.894e-05,2]
[348530021,1736605843672,-500.0,9.894e-05,2]
[348530023,1736605843681,-734.88,9.894e-05,2]
[348530025,1736605843691,-647.84,9.894e-05,2]
[348530027,1736605843700,-681.04,9.894e-05,2]
[348530029,1736605843711,-1239.66,9.894e-05,2]
[348530031,1736605843721,-5155.38,9.894e-05,2]
[348530033,1736605843730,-500.0,9.894e-05,2]
[348530035,1736605843739,-500.0,9.894e-05,2]
[348530037,1736605843748,-500.0,9.894e-05,2]
[348530039,1736605843757,-969.76,9.894e-05,2]
[348530041,1736605843766,-500.0,9.894e-05,2]
[348530043,1736605843774,-500.0,9.894e-05,2]
[348530045,1736605843783,-766.78,9.894e-05,2]
[348530047,1736605843793,-631.2,9.894e-05,2]
[348530049,1736605843802,-561.23,9.894e-05,2]
[348530051,1736605843811,-500.25,9.894e-05,2]
[348530053,1736605843820,-500.0,9.894e-05,2]
[348530055,1736605843829,-1276.19,9.894e-05,2]
[348530057,1736605843839,-600.84,9.999e-05,2]
[348530059,1736605843849,-500.0,9.999e-05,2]
[348530061,1736605843857,-811.94,9.999e-05,2]
[348530062,1736605843866,-505.59883384,9.999e-05,2]
[348530064,1736605843875,-500.0,9.999e-05,2]
[348530066,1736605843884,-500.0,9.999e-05,2]
[348530069,1736605843894,-574.92,9.999e-05,2]
[348530070,1736605843903,-43307.91697788,0.0001,2]
[348530074,1736605843927,-95832.35486429,0.0001,2]
[348530076,1736605843939,-136641.43825497,0.0001,2]
[348530290,1736605845934,-406.0074681,9.887e-05,2]
[348530293,1736605845945,-93.9925319,9.887e-05,2]
[348530295,1736605845957,-500.0,9.887e-05,2]
[348530297,1736605845968,-500.0,9.887e-05,2]
[348530299,1736605845976,-500.0,9.887e-05,2]
[348530300,1736605845986,-574.83,9.887e-05,2]
[348530302,1736605845996,-848.9,9.887e-05,2]
[348530304,1736605846005,-6199.6774681,0.0001,2]
[348530307,1736605846016,-8048.30185776,0.0001,2]
[348530311,1736605846045,-27233.91770924,0.0001,2]
[348530313,1736605846056,-265.45257076,0.0001,2]
[348530315,1736605846067,-9030.0,0.0001,2]
[348530929,1736606401949,5447.15282722,0.00011168,30]
[348530931,1736606909077,615.07,8.219e-05,2]
[348530933,1736607032134,-684.23,9.019e-05,2]
[348530934,1736607032143,-250.0,9.115e-05,2]
[348530935,1736607032153,-732.43,9.209e-05,2]
[348530936,1736607032163,-160.54936755,9.26e-05,2]
[348530937,1736607032175,-412.40818989,9.26e-05,2]
[348530938,1736607032616,-5698.70911555,9.26e-05,2]
[348530939,1736607032628,-425.08643498,9.26e-05,2]
[348530940,1736607032638,-4965.893,9.26e-05,2]
[348530941,1736607032675,-12237.35389203,9.26e-05,2]
[348530942,1736607032685,-1000.0,9.263e-05,2]
[348530943,1736607032694,-150.0,9.753e-05,2]
[348530944,1736607032703,-772.13,9.76e-05,2]
[348530945,1736607032713,-437.9,9.76e-05,2]
[348530946,1736607032722,-772.13,9.76e-05,2]
[348530947,1736607032731,-437.9,9.76e-05,2]
[348530948,1736607032741,-437.9,9.76e-05,2]
[348530950,1736607032750,-771.17,9.76e-05,2]
[348530952,1736607032759,-437.27,9.76e-05,2]
[348530954,1736607032768,-3144.9887,9.787e-05,2]
[348530956,1736607032778,-772.13,9.79e-05,2]
[348530958,1736607032788,-437.9,9.79e-05,2]
[348530960,1736607032797,-772.13,9.79e-05,2]
[348530962,1736607032806,-437.9,9.79e-05,2]
[348530964,1736607032815,-437.9,9.79e-05,2]
[348530966,1736607032824,-772.13,9.79e-05,2]
[348530968,1736607032834,-437.9,9.8e-05,2]
[348530970,1736607032843,-772.13,9.8e-05,2]
[348530972,1736607032852,-800.0,9.8e-05,3]
[348530975,1736607032861,-1870.8,9.836e-05,2]
[348530978,1736607032874,-150.0,9.836e-05,2]
[348530981,1736607032883,-150.0,9.836e-05,2]
[348530983,1736607032892,-437.16,9.836e-05,2]
[348530986,1736607032901,-300.0,9.836e-05,2]
[348530989,1736607032910,-437.16,9.836e-05,2]
[348530992,1736607032919,-150.0,9.836e-05,2]
[348530995,1736607032928,-437.16,9.836e-05,2]
[348530998,1736607032937,-150.0,9.836e-05,2]
[348531001,1736607032947,-154.15,9.836e-05,2]
[348531004,1736607032956,-150.0,9.836e-05,2]
[348531007,1736607032966,-296.84595655,9.886e-05,2]
[348531010,1736607032975,-206.56792627,9.886e-05,2]
[348531013,1736607032984,-500.0,9.886e-05,2]
[348531016,1736607032994,-500.0,9.886e-05,2]
[348531018,1736607033003,-420.6999229,9.886e-05,2]
[348531021,1736607033012,-500.0,9.886e-05,2]
[348531024,1736607033021,-500.0,9.886e-05,2]
[348531026,1736607033031,-500.0,9.886e-05,2]
[348531028,1736607033040,-500.0,9.886e-05,2]
[348531031,1736607033050,-500.0,9.886e-05,2]
[348531032,1736607033059,-500.0,9.886e-05,2]
[348531034,1736607033068,-500.0,9.886e-05,2]
[348531036,1736607033078,-500.0,9.886e-05,2]
[348531038,1736607033087,-500.0,9.886e-05,2]
[348531040,1736607033096,-500.0,9.886e-05,2]
[348531042,1736607033105,-500.0,9.886e-05,2]
[348531044,1736607033115,-500.0,9.886e-05,2]
[348531046,1736607033124,-500.0,9.886e-05,2]
[348531048,1736607033133,-500.0,9.886e-05,2]
[348531050,1736607033143,-500.0,9.886e-05,2]
[348531052,1736607033152,-500.0,9.886e-05,2]
[348531054,1736607033163,-500.0,9.886e-05,2]
[348531056,1736607033173,-500.0,9.886e-05,2]
[348531058,1736607033182,-500.0,9.886e-05,2]
[348531060,1736607033191,-500.0,9.886e-05,2]
[348531062,1736607033200,-500.0,9.886e-05,2]
[348531064,1736607033210,-500.0,9.886e-05,2]
[348531066,1736607033219,-500.0,9.886e-05,2]
[348531068,1736607033228,-500.0,9.886e-05,2]
[348531070,1736607033238,-488.36753171,9.886e-05,2]
[348531072,1736607033247,-500.0,9.886e-05,2]
[348531074,1736607033256,-500.0,9.886e-05,2]
[348531076,1736607033266,-500.0,9.886e-05,2]
[348531078,1736607033275,-500.0,9.886e-05,2]
[348531080,1736607033284,-222.01165208,9.886e-05,2]
[348531081,1736607033293,-502.76386142,9.886e-05,2]